fUSD/lending_fUSD_20240114
["ID","MTS","AMOUNT","RATE_DAILY","PERIOD"]
[311551381,1705222232444,-150.0,0.00022384,2]
[311551384,1705222232453,-162.63747843,0.0002241,3]
[311551386,1705222232462,-156.01597444,0.00022498,2]
[311551388,1705222232471,-161.35063331,0.00022498,2]
[311551390,1705222232480,-200.49192303,0.00022498,2]
[311551393,1705222232489,-217.23658877,0.00022499,2]
[311551396,1705222232498,-179.60156692,0.00022499,2]
[311551399,1705222232507,-504.49087949,0.00022499,2]
[311551402,1705222232517,-235.04520878,0.00022499,2]
[311551405,1705222232526,-14243.69853983,0.000225,2]
[311551409,1705222232542,-254.97541329,0.000225,2]
[311551413,1705222232554,-467.54127916,0.000225,2]
[311551416,1705222232567,-9113.62558919,0.000225,2]
[311551420,1705222232584,-488.13699332,0.000225,2]
[311551423,1705222232606,-281.59861526,0.000225,2]
[311551425,1705222232618,-362.1335145,0.000225,2]
[311551426,1705222232631,-384.3878097,0.000225,2]
[311551428,1705222232642,-690.37093522,0.000225,2]
[311551430,1705222232655,-4042.69874678,0.000225,2]
[311551433,1705222232671,-1711.99249184,0.000225,2]
[311551435,1705222232685,-862.43464687,0.000225,2]
[311551437,1705222232703,-1326.90572338,0.000225,2]
[311551440,1705222232733,-500.355,0.000225,2]
[311551441,1705222238061,-35996.06177008,0.000225,2]
[311551442,1705222238071,-150.0,0.00022548,2]
[311551443,1705222238081,-159.94,0.00022629,2]
[311551444,1705222238091,-2255.247,0.00022668,2]
[311551445,1705222238100,-165.42670161,0.00022768,3]
[311551446,1705222238110,-41379.2962823,0.00022768,2]
[311551447,1705222238119,-155.0,0.00022768,2]
[311551448,1705222238129,-194.14,0.00022889,2]
[311551449,1705222238139,-703.1249,0.00022898,2]
[311551450,1705222238149,-1931.3362,0.00022899,2]
[311551451,1705222238158,-250.0,0.000229,2]
[311551452,1705222238168,-1552.1593,0.000229,2]
[311551453,1705222238177,-150.49167005,0.000229,2]
[311551454,1705222238186,-155.62734564,0.000229,2]
[311551455,1705222238196,-153.67881354,0.000229,2]
[311551456,1705222238205,-166.28597973,0.0002299,2]
[311551457,1705222238215,-496.27788702,0.00022998,2]
[311551458,1705222238224,-363.64755917,0.00022998,2]
[311551459,1705222238234,-4470.62884966,0.00022998,2]
[311551460,1705222238244,-7871.17544511,0.00022998,2]
[311551461,1705222238253,-4147.97993034,0.00022998,2]
[311551462,1705222238263,-466.44967368,0.00022998,2]
[311551463,1705222238273,-8599.08811259,0.00022998,2]
[311551464,1705222238282,-242.15573671,0.00022998,2]
[311551465,1705222238292,-4324.48153211,0.00022998,2]
[311551466,1705222238301,-213.88151203,0.00022998,2]
[311551467,1705222238310,-531.80647171,0.00022998,2]
[311551468,1705222238319,-332.03594961,0.00022999,2]
[311551469,1705222238329,-311.82431684,0.00022999,2]
[311551470,1705222238338,-367.29106047,0.00022999,2]
[311551471,1705222238347,-96309.64851546,0.00022999,2]
[311551472,1705222238356,-150.0,0.00022999,2]
[311551473,1705222238366,-150.0,0.00022999,2]
[311551474,1705222238375,-150.0,0.00022999,2]
[311551475,1705222238385,-150.0,0.00022999,2]
[311551476,1705222238394,-150.0,0.00022999,2]
[311551477,1705222238404,-150.0,0.00022999,2]
[311551478,1705222238414,-257128.38766218,0.00023,2]
[311551479,1705222238423,-1717963.84631221,0.00023,2]
[311551480,1705222238436,-680.35766614,0.00023,2]
[311551485,1705222238483,-827.07431741,0.00023,2]
[311551488,1705222238498,-671.56810341,0.00023,2]
[311551491,1705222238525,-763.27263089,0.00023,2]
[311551494,1705222238537,-1649.92772673,0.00023,2]
[311551497,1705222238557,-738.31149893,0.00023,2]
[311551500,1705222238573,-489.55158024,0.00023,2]
[311551504,1705222238592,-824.24563336,0.00023,2]
[311551780,1705222241262,-681.32805981,0.00023,2]
[311551782,1705222241273,-991.94342413,0.00023,2]
[311551788,1705222241318,-801.4503121,0.00023,2]
[311551794,1705222241376,-410.44244451,0.00023,2]
[311551796,1705222241387,-305.964,0.00023,2]
[311551798,1705222241399,-2324.88928725,0.00023,2]
[311551802,1705222241434,-769.81634197,0.00023,2]
[311551808,1705222241488,-3579.55,0.00023,2]
[311551916,1705222244485,-3470.59545206,0.00023,2]
[311551917,1705222244497,-4969.23980572,0.00023,2]
[311551918,1705222244508,-826.95862416,0.00023,2]
[311551919,1705222244550,-952.98255925,0.00023,2]
[311551920,1705222244561,-1695.43490274,0.00023,2]
[311551921,1705222244608,-466.87362288,0.00023,2]
[311551922,1705222244620,-848.61708918,0.00023,2]
[311551923,1705222244666,-4878.33379594,0.00023,2]
[311551924,1705222244678,-4028.00553546,0.00023,2]
[311551925,1705222244724,-335.05738052,0.00023,2]
[311551926,1705222244782,-543.57675708,0.00023,2]
[311551935,1705222246033,-258.33326766,0.00023,2]
[311551936,1705222246091,-405.30842784,0.00023,2]
[311551937,1705222246315,-333.77599218,0.00023,2]
[311551938,1705222246326,-2117.07260643,0.00023,2]
[311551939,1705222246337,-826.75429719,0.00023,2]
[311551940,1705222246348,-831.11955982,0.00023,2]
[311551947,1705222280507,3185.89838635,0.00022078,2]
[311551984,1705222484953,190.71,0.00020614,2]
[311551985,1705222498431,225.5216828,0.00022078,2]
[311551986,1705222500419,234.60743035,0.00022078,2]
[311551987,1705222530411,234.77463939,0.00022078,2]
[311551988,1705222554416,234.44022131,0.00022078,2]
[311552105,1705222804166,212.0,0.00021161,2]
[311552138,1705222860059,327.94,0.00022067,2]
[311552149,1705222918899,1961.15073053,0.000278,30]
[311552183,1705222941480,175.3,0.00017612,2]
[311552200,1705222945336,191.89,0.00022048,2]
[311552203,1705222951378,195.59,0.00020172,2]
[311552210,1705223018419,161.27,0.00022021,2]
[311552243,1705223135147,1146.91,0.00021915,2]
[311552250,1705223154538,352.02,0.00022,2]
[311552266,1705223277571,195.09,0.00021938,2]
[311552272,1705223295379,737.64,0.00021935,2]
[311552276,1705223323413,150.0,0.00022,2]
[311552284,1705223376983,201.15,0.00021913,2]
[311552285,1705223382630,3185.89838635,0.00022076,2]
[311552287,1705223398258,199.51,0.00020013,2]
[311552289,1705223416634,1126.77899773,0.00022076,2]
[311552300,1705223432177,-499.13548228,0.00022115,2]
[311552306,1705223432396,-21.8836038,0.00022115,2]
[311552307,1705223432417,-1108.12390413,0.00022116,2]
[311552308,1705223432446,-532.81530328,0.00022116,2]
[311552309,1705223432474,-1609.29824555,0.00022116,2]
[311552310,1705223432544,-1434.90897705,0.00022116,2]
[311552311,1705223432599,-589.77475206,0.00022116,2]
[311552312,1705223432608,-1040.28791122,0.00022116,2]
[311552313,1705223432617,-3249.21833539,0.00022117,2]
[311552314,1705223432626,-300.0,0.00022121,2]
[311552315,1705223432636,-150.0,0.00022121,2]
[311552316,1705223432645,-150.0,0.00022121,2]
[311552317,1705223432654,-159.94,0.00022162,2]
[311552318,1705223432663,-112.19117803,0.00022186,2]
[311552342,1705223438174,-44.13882197,0.00022186,2]
[311552343,1705223438184,-199.51,0.00022277,2]
[311552344,1705223438193,-400.99457651,0.0002231,2]
[311552345,1705223438204,-202.0768041,0.00022415,3]
[311552346,1705223438216,-65.85979742,0.00022496,2]
[311552347,1705223438232,-180.07020258,0.00022496,2]
[311552348,1705223438243,-155.0,0.00022536,7]
[311552349,1705223438252,-64.92979742,0.00022548,2]
[311552350,1705223438264,-85.07020258,0.00022548,2]
[311552351,1705223438274,-245.93,0.00022614,2]
[311552352,1705223438283,-150.0,0.00022636,2]
[311552353,1705223438293,-245.93,0.00022733,2]
[311552354,1705223438307,-496.27788702,0.00022766,2]
[311552355,1705223438317,-245.93,0.00022851,2]
[311552356,1705223438326,-201.15,0.00022892,2]
[311552357,1705223438336,-153.67881354,0.00022899,2]
[311552358,1705223438345,-250.0,0.000229,2]
[311552359,1705223438354,-1504.9167001,0.000229,2]
[311552360,1705223438364,-245.93,0.0002297,2]
[311552361,1705223438375,-166.28597973,0.0002299,2]
[311552362,1705223438385,-159.94,0.00022996,2]
[311552363,1705223438395,-531.80647171,0.00022996,2]
[311552364,1705223438404,-466.44967368,0.00022996,2]
[311552365,1705223438413,-8599.08811259,0.00022996,2]
[311552366,1705223438430,-4147.97993034,0.00022996,2]
[311552367,1705223438456,-7871.17544511,0.00022996,2]
[311552368,1705223438486,-4470.62884966,0.00022996,2]
[311552369,1705223438525,-363.64755917,0.00022996,2]
[311552370,1705223438561,-10033.68170994,0.00022997,2]
[311552371,1705223438572,-367.29106047,0.00022997,2]
[311552372,1705223438581,-311.82431684,0.00022997,2]
[311552373,1705223438590,-242.15573671,0.00022997,2]
[311552374,1705223438600,-4324.48153211,0.00022997,2]
[311552375,1705223438609,-213.88151203,0.00022997,2]
[311552376,1705223438619,-332.03594961,0.00022998,2]
[311552377,1705223438628,-300.81417781,0.00022998,2]
[311552378,1705223438637,-2231.62990919,0.00022998,2]
[311552379,1705223438646,-155.0,0.00022998,2]
[311552380,1705223438656,-96309.64851546,0.00022998,2]
[311552381,1705223438665,-2314.81923114,0.00022999,2]
[311552382,1705223438674,-1929.84803143,0.00022999,2]
[311552383,1705223438684,-200000.0,0.00022999,2]
[311552384,1705223438693,-150.0,0.00022999,2]
[311552385,1705223438703,-150.0,0.00022999,2]
[311552386,1705223438712,-150.0,0.00022999,2]
[311552387,1705223438721,-150.0,0.00022999,2]
[311552388,1705223438731,-150.0,0.00022999,2]
[311552389,1705223438744,-150.0,0.00022999,2]
[311552390,1705223438754,-150.0,0.00022999,2]
[311552391,1705223438763,-150.0,0.00022999,2]
[311552392,1705223438772,-150.0,0.00022999,2]
[311552393,1705223438782,-150.0,0.00022999,2]
[311552394,1705223438791,-150.0,0.00022999,2]
[311552395,1705223438800,-150.0,0.00022999,2]
[311552396,1705223438809,-150.0,0.00022999,2]
[311552397,1705223438819,-150.0,0.00022999,2]
[311552398,1705223438829,-539.0,0.00023,2]
[311552399,1705223438838,-494962.05560219,0.00023,2]
[311552400,1705223438847,-1077554.84186257,0.00023,2]
[311552401,1705223438857,-180382.0677339,0.00023,2]
[311552402,1705223438873,-17213.56719138,0.00023,2]
[311552403,1705223438884,-99793.77272742,0.00023,2]
[311552404,1705223438896,-690.84238113,0.00023,2]
[311552405,1705223438922,-163677.71902251,0.00023,2]
[311552406,1705223439618,-998.42417473,0.00023,2]
[311552407,1705223439629,-3613.84489398,0.00023,2]
[311552408,1705223439642,-457.04,0.00023,2]
[311552409,1705223439672,-250.0,0.00023,2]
[311552410,1705223439684,-323.52585239,0.00023,2]
[311552411,1705223439783,-546.72999999,0.00023,2]
[311552422,1705223440707,-153.67881354,0.000229,2]
[311552423,1705223440717,-2106.82118646,0.00023,2]
[311552424,1705223441352,-166104.30706321,0.00023,2]
[311552425,1705223441364,-2565.4531453,0.00023,2]
[311552426,1705223441411,-1753.60707812,0.00023,2]
[311552427,1705223441470,-8152.32092417,0.00023,2]
[311552428,1705223441527,-1789.99622207,0.00023,2]
[311552429,1705223441539,-1212.97961708,0.00023,2]
[311552430,1705223441551,-2444.00296405,0.00023,2]
[311552431,1705223441563,-299.64868434,0.00023,2]
[311552432,1705223441582,-3103.72225,0.00023,2]
[311552433,1705223441594,-424.82213099,0.00023,2]
[311552434,1705223441642,-1346.76643358,0.00023,2]
[311552436,1705223441656,-4804.51693671,0.00023,2]
[311552437,1705223441670,-9481.36738408,0.00023,2]
[311552443,1705223443146,-1736.11442336,0.00022999,2]
[311552444,1705223443156,-1243.76399167,0.00023,2]
[311552445,1705223443167,-1245.28478886,0.00023,2]
[311552446,1705223443178,-1100.46556089,0.00023,2]
[311552447,1705223443204,-717.584718,0.00023,2]
[311552448,1705223443215,-4103.3305331,0.00023,2]
[311552449,1705223443261,-10071.60396504,0.00023,2]
[311552450,1705223443271,-3510.059181,0.00023,2]
[311552451,1705223443320,-738.37137349,0.00023,2]
[311552452,1705223443331,-941.49730827,0.00023,2]
[311552453,1705223443343,-1928.56554969,0.00023,2]
[311552454,1705223443354,-23482.07583958,0.00023,2]
[311552455,1705223443378,-3208.91479495,0.00023,2]
[311552456,1705223443389,-561.1475396,0.00023,2]
[311552457,1705223443435,-296.71386855,0.00023,2]
[311552458,1705223443446,-7034.42364167,0.00023,2]
[311552459,1705223443494,-2634.9914707,0.00023,2]
[311552462,1705223443506,-136136.70153991,0.00023,2]
[311552467,1705223446229,-153.67881354,0.000229,2]
[311552468,1705223446239,-147.68945295,0.00022999,2]
[311552469,1705223446259,-483.35778768,0.00022999,2]
[311552470,1705223446305,-342.52527456,0.00022999,2]
[311552471,1705223446316,-3700.85609458,0.00023,2]
[311552472,1705223446330,-602.2036766,0.00023,2]
[311552473,1705223446526,-1637.4717205,0.00023,2]
[311552474,1705223446537,-18334.75249306,0.00023,2]
[311552475,1705223446549,-3639.46222033,0.00023,2]
[311552477,1705223472756,2591.5077,0.00022019,2]
[311552481,1705223503715,559.9916769,0.00020468,2]
[311552482,1705223510688,563.72651413,0.00021848,2]
[311552483,1705223513635,211.58072365,0.00020698,2]
[311552485,1705223513923,380.45986741,0.00020468,2]
[311552486,1705223519553,164.45108612,0.00021848,2]
[311552502,1705223731202,275.86,0.00022077,2]
[311552504,1705223737472,172.52,0.00022077,2]
[311552509,1705223815898,217.9,0.00020158,2]
[311552511,1705223843204,195.92,0.00021961,2]
[311552513,1705223851197,409.88,0.00021919,2]
[311552576,1705224174938,151.86265175,0.00022,2]
[311552578,1705224184475,150.0,0.00022,2]
[311552592,1705224335986,229.18,0.00020127,2]
[311552596,1705224415638,155.0,0.00022099,2]
[311552597,1705224420669,2166.14555693,0.00022099,2]
[311552598,1705224428865,150.0,0.000221,2]
[311552599,1705224429363,1040.28791122,0.00022099,2]
[311552600,1705224434140,521.01908608,0.00022099,2]
[311552602,1705224487340,164.69055572,0.000221,2]
[311552609,1705224499694,221.82,0.00021861,2]
[311552610,1705224505178,1805.12129744,0.00022099,2]
[311552611,1705224508636,521.01908608,0.00022099,2]
[311552614,1705224538593,150.0,0.00022,2]
[311552623,1705224575687,940.46819597,0.00022099,2]
[311552631,1705224631375,-310.97096475,0.000221,2]
[311552632,1705224631388,-6122.74406176,0.000221,2]
[311552633,1705224631397,-672.09,0.00022101,2]
[311552634,1705224631407,-155.0,0.00022191,2]
[311552635,1705224631416,-159.72566062,0.00022192,2]
[311552636,1705224631426,-500.0,0.000223,8]
[311552637,1705224631436,-229.18,0.00022391,2]
[311552638,1705224631445,-1100.0,0.000224,8]
[311552639,1705224631455,-264.7401266,0.00022417,3]
[311552640,1705224631465,-150.0,0.00022427,2]
[311552641,1705224631474,-159.72566061,0.00022428,2]
[311552642,1705224631483,-1391.14,0.00022428,2]
[311552643,1705224631493,-155.94,0.00022469,2]
[311552644,1705224631502,-1700.0,0.000225,8]
[311552645,1705224631512,-150.0,0.00022548,2]
[311552646,1705224631521,-182.43088806,0.00022562,2]
[311552647,1705224631553,-361.76911194,0.00022562,2]
[311552648,1705224631563,-19645.63,0.00022562,2]
[311552649,1705224631574,-2300.0,0.000226,8]
[311552650,1705224631585,-211.0,0.00022634,2]
[311552651,1705224631594,-159.72566061,0.00022664,2]
[311552652,1705224631603,-2802.27,0.00022664,2]
[311552653,1705224631612,-1432.92,0.00022664,2]
[311552654,1705224631622,-478.96,0.00022664,2]
[311552655,1705224631631,-5514.25,0.00022664,2]
[311552656,1705224631640,-2900.0,0.000227,8]
[311552657,1705224631650,-271.87271145,0.000228,3]
[311552658,1705224631661,-500.0,0.000228,8]
[311552659,1705224631670,-200.0,0.00022816,2]
[311552660,1705224631680,-800.0,0.00022816,2]
[311552661,1705224631689,-221.82,0.0002284,2]
[311552662,1705224631698,-1070.8395,0.000229,2]
[311552663,1705224631708,-250.0,0.000229,2]
[311552664,1705224631717,-3746.34763629,0.000229,2]
[311552665,1705224631733,-458.22777,0.000229,2]
[311552667,1705224631748,-735.23505641,0.000229,2]
[311552669,1705224631760,-1697.5232373,0.000229,2]
[311552693,1705224631972,-159.72566061,0.000229,2]
[311552695,1705224631982,-2964.22956328,0.000229,2]
[311552706,1705224637453,-272.27361869,0.000229,2]
[311552707,1705224637463,-331.30697404,0.000229,2]
[311552708,1705224637473,-320.90545124,0.000229,2]
[311552709,1705224637482,-323.17875603,0.000229,8]
[311552710,1705224637510,-176.82124397,0.000229,8]
[311552711,1705224637526,-1929.84803143,0.00022998,2]
[311552712,1705224637546,-757.78095505,0.00022998,2]
[311552713,1705224637568,-311.011393,0.00022998,2]
[311552714,1705224637601,-940.46819597,0.00022998,2]
[311552715,1705224637634,-213.58643392,0.00022998,2]
[311552716,1705224637663,-244.64133608,0.00022998,2]
[311552717,1705224637674,-155.28756232,0.00022998,2]
[311552718,1705224637684,-1880.7906253,0.00022999,2]
[311552719,1705224637693,-150.0,0.00022999,2]
[311552720,1705224637703,-150.0,0.00022999,2]
[311552721,1705224637713,-150.0,0.00022999,2]
[311552722,1705224637722,-150.0,0.00022999,2]
[311552723,1705224637743,-150.0,0.00022999,2]
[311552724,1705224637753,-150.0,0.00022999,2]
[311552725,1705224637763,-150.0,0.00022999,2]
[311552726,1705224637773,-150.0,0.00022999,2]
[311552727,1705224637782,-150.0,0.00022999,2]
[311552728,1705224637792,-150.0,0.00022999,2]
[311552729,1705224637802,-563.24455458,0.00023,3]
[311552730,1705224637811,-542.0,0.00023,2]
[311552731,1705224637822,-18473.68988676,0.00023,2]
[311552732,1705224637848,-504.21309168,0.00023,2]
[311552733,1705224637860,-475984.15262375,0.00023,2]
[311552734,1705224637870,-395.27494141,0.00023,3]
[311552735,1705224637880,-311.62894454,0.00023,3]
[311552736,1705224637890,-1283091.57595153,0.00023,2]
[311552737,1705224637916,-2966.31717567,0.00023,2]
[311552738,1705224637928,-399.13216622,0.00023,2]
[311552739,1705224637941,-1815.67119297,0.00023,2]
[311552740,1705224637962,-11851.59655212,0.00023,2]
[311552741,1705224640640,-265.33422513,0.00023,2]
[311552742,1705224640695,-403.47012699,0.00023,2]
[311552743,1705224640805,-6215.7038564,0.00023,2]
[311552744,1705224640817,-6929.66577214,0.00023,2]
[311552745,1705224640830,-21476.76043805,0.00023,2]
[311552754,1705224642312,-4298.317476,0.00023,2]
[311552756,1705224642421,-495.3073335,0.00023,2]
[311552757,1705224642433,-9340.29152643,0.00023,2]
[311552761,1705224645882,-940.6256692,0.00023,2]
[311552762,1705224698804,2513.88650119,0.00022078,2]
[311552763,1705224720801,601.48371788,0.00022076,2]
[311552765,1705224822260,226.23,0.00020353,2]
[311552767,1705224919725,14810.383457,0.00022,2]
[311552768,1705224978004,-940.46819597,0.00022124,2]
[311552769,1705224978029,-155.0,0.00022125,2]
[311552770,1705224978053,-6433.71502651,0.00022125,2]
[311552771,1705224978079,-462.32,0.00022126,2]
[311552776,1705225117577,220.04831573,0.00022126,2]
[311552778,1705225217876,230.41,0.00022001,2]
[311552781,1705225277698,153.17,0.00022022,2]
[311552783,1705225289098,10000.0,0.00021944,2]
[311552785,1705225313831,235.55,0.00019982,2]
[311552786,1705225377739,630.14,0.00021893,2]
[311552791,1705225429423,2143.98939105,0.000222,2]
[311552792,1705225437404,171.76196132,0.000222,2]
[311552794,1705225448860,311.94853868,0.000222,2]
[311552795,1705225450443,290.66,0.00022068,2]
[311552796,1705225452338,400.0,0.000222,2]
[311552797,1705225454651,386.6891831,0.000222,2]
[311552798,1705225456076,155.0,0.000222,2]
[311552799,1705225456850,16754.29723239,0.000222,2]
[311552801,1705225466224,363.8051896,0.000222,2]
[311552802,1705225468284,940.46819597,0.000222,2]
[311552803,1705225474437,24327.1934238,0.000222,2]
[311552804,1705225476461,2945.1248498,0.000222,2]
[311552805,1705225476567,248.55625965,0.000222,2]
[311552817,1705225609379,940.46819597,0.000222,2]
[311552819,1705225619569,248.55625965,0.000222,2]
[311552822,1705225644363,311.94853868,0.000222,2]
[311552824,1705225655542,172.52,0.0002188,2]
[311552825,1705225659741,363.8051896,0.000222,2]
[311552829,1705225689806,940.46819597,0.000222,2]
[311552830,1705225697666,200.26860749,0.00022101,2]
[311552831,1705225702197,154.86,0.00021927,2]
[311552833,1705225708639,233.11,0.00021932,2]
[311552834,1705225712516,168.35,0.00022088,2]
[311552835,1705225716463,4615.32924907,0.000222,2]
[311552836,1705225747161,10000.0,0.00021918,2]
[311552837,1705225762211,150.0,0.00022,2]
[311552838,1705225809814,242.34,0.00020009,2]
[311552856,1705225831605,-940.46819597,0.00022194,2]
[311552858,1705225831615,-363.8051896,0.00022195,2]
[311552860,1705225831624,-301.07198682,0.00022196,2]
[311552862,1705225831633,-4090.51464504,0.00022196,2]
[311552866,1705225831664,-1184.40653703,0.00022196,2]
[311552868,1705225831673,-1976.26620551,0.00022197,2]
[311552871,1705225831725,-250.0,0.00022197,2]
[311552872,1705225831738,-5551.75696054,0.00022197,2]
[311552873,1705225831747,-150.0,0.00022201,2]
[311552874,1705225831756,-23.26648809,0.00022202,2]
[311552875,1705225831769,-1100.0,0.00022202,2]
[311552876,1705225831785,-567.0516138,0.00022202,2]
[311552877,1705225831796,-254.7545,0.00022202,2]
[311552878,1705225831808,-576.32490571,0.00022202,2]
[311552879,1705225831819,-2574.04524832,0.00022202,2]
[311552880,1705225831839,-2277.7,0.00022202,2]
[311552881,1705225831851,-399.2023011,0.00022202,2]
[311552882,1705225831862,-558.52308031,0.00022202,2]
[311552883,1705225831874,-1845.0,0.00022202,2]
[311552884,1705225831897,-523.11810905,0.00022202,2]
[311552914,1705225837739,-4526.79899782,0.00022202,2]
[311552915,1705225837807,-1545.65765253,0.00022202,2]
[311552916,1705225837819,-7555.75052707,0.00022202,2]
[311552917,1705225837829,-45234.58785265,0.00022203,2]
[311552918,1705225837838,-168.35,0.00022253,2]
[311552919,1705225837847,-242.34,0.00022273,2]
[311552920,1705225837857,-150.0,0.00022384,2]
[311552921,1705225837865,-168.35,0.00022417,2]
[311552922,1705225837874,-474.56390536,0.00022419,3]
[311552923,1705225837884,-261.01014794,0.00022419,3]
[311552924,1705225837893,-159.94,0.00022462,2]
[311552925,1705225837902,-153.17,0.00022462,2]
[311552926,1705225837911,-150.0,0.0002248,2]
[311552927,1705225837921,-150.0,0.00022548,2]
[311552928,1705225837930,-2966.04,0.00022562,2]
[311552929,1705225837939,-989.0673757,0.0002257,2]
[311552930,1705225837948,-168.35,0.00022581,2]
[311552931,1705225837958,-168.35,0.00022746,2]
[311552932,1705225837967,-150.1,0.00022816,3]
[311552933,1705225837976,-200.0,0.00022816,2]
[311552934,1705225837985,-800.0,0.00022816,2]
[311552935,1705225837995,-155.42792188,0.00022896,2]
[311552936,1705225838005,-7504.157,0.00022898,2]
[311552937,1705225838015,-616.0974,0.000229,2]
[311552938,1705225838025,-41083.7055,0.000229,2]
[311552939,1705225838034,-600.0,0.000229,2]
[311552940,1705225838044,-250.0,0.000229,2]
[311552941,1705225838053,-153.17,0.00022903,2]
[311552942,1705225838062,-233.11,0.0002291,2]
[311552943,1705225838072,-168.35,0.0002291,2]
[311552944,1705225838081,-215.30779776,0.00022973,2]
[311552945,1705225838091,-166.28597973,0.0002299,2]
[311552946,1705225838100,-151.13615518,0.00022994,3]
[311552947,1705225838109,-155.56592362,0.00022994,2]
[311552948,1705225838119,-4147.97993034,0.00022994,2]
[311552949,1705225838128,-531.80647171,0.00022994,2]
[311552950,1705225838137,-1744.48135751,0.00022994,2]
[311552951,1705225838146,-366.29171188,0.00022994,2]
[311552952,1705225838157,-171.21431276,0.00022994,2]
[311552953,1705225838169,-400.0,0.00022994,2]
[311552954,1705225838178,-386.38607478,0.00022994,2]
[311552956,1705225838187,-155.0,0.00022994,2]
[311552958,1705225838196,-16739.25607363,0.00022994,2]
[311552960,1705225838205,-465.3033248,0.00022994,2]
[311552962,1705225838214,-13222.05175332,0.00022994,2]
[311552964,1705225838223,-1707.23061659,0.00022994,2]
[311552966,1705225838231,-1135.27978758,0.00022994,2]
[311552967,1705225838241,-248.27674602,0.00022994,2]
[311552968,1705225838251,-219.21918587,0.00022994,2]
[311552969,1705225838260,-279.00084549,0.00022994,2]
[311552970,1705225838270,-583.76067502,0.00022994,2]
[311552971,1705225838279,-246.39576141,0.00022994,2]
[311552972,1705225838288,-155.0,0.00022994,2]
[311552973,1705225838297,-472.70124021,0.00022995,2]
[311552974,1705225838306,-8599.08811259,0.00022995,2]
[311552975,1705225838315,-203.95851291,0.00022996,3]
[311552976,1705225838324,-201.70921786,0.00022996,3]
[311552977,1705225838333,-1427.10928311,0.00022996,2]
[311552978,1705225838343,-417.6160908,0.00022996,2]
[311552979,1705225838352,-1256.28194344,0.00022996,2]
[311552980,1705225838361,-150.99,0.00022996,2]
[311552981,1705225838371,-4644.12903449,0.00022996,2]
[311552982,1705225838380,-3055.26979122,0.00022996,2]
[311552983,1705225838389,-217.71520853,0.00022996,2]
[311552984,1705225838399,-250.02290447,0.00022996,2]
[311552985,1705225838408,-160.46586719,0.00022996,2]
[311552986,1705225838417,-265.185965,0.00022996,2]
[311552987,1705225838425,-376.44759867,0.00022996,2]
[311552988,1705225838434,-2304.07734728,0.00022996,2]
[311552989,1705225838444,-155.63890342,0.00022996,2]
[311552990,1705225838452,-196.7064931,0.00022996,2]
[311552991,1705225838461,-473.8673768,0.00022996,2]
[311552992,1705225838471,-161.5917949,0.00022996,2]
[311552993,1705225838480,-155.49419983,0.00022996,2]
[311552994,1705225838489,-2617.16595295,0.00022996,2]
[311552995,1705225838498,-202.44330084,0.00022996,2]
[311552996,1705225838507,-309.79583088,0.00022996,2]
[311552997,1705225838516,-155.33795815,0.00022996,2]
[311552998,1705225838525,-2898.41694592,0.00022996,2]
[311552999,1705225838535,-155.0,0.00022996,2]
[311553000,1705225838544,-2231.62990919,0.00022996,2]
[311553001,1705225838553,-332.03594961,0.00022996,2]
[311553002,1705225838562,-96309.64851546,0.00022996,2]
[311553003,1705225838571,-213.88151203,0.00022996,2]
[311553004,1705225838581,-242.15573671,0.00022996,2]
[311553005,1705225838589,-4324.48153211,0.00022996,2]
[311553006,1705225838597,-285.07168855,0.00022996,2]
[311553007,1705225838606,-650.93242009,0.00022996,2]